bitfinex-derivatives/quotes_SOLF0:USTF0_20251115
["timestamp","ask_amount","ask_price","bid_price","bid_amount"]
[1763245690439,3.2,139.95,139.9,3.26]
[1763245691032,3.2,139.95,139.91,1.84064355]
[1763245691541,3.2,139.95,139.92,3.28]
[1763245691743,3.2,139.95,139.92,3.33251286]
[1763245699851,3.26,139.97,139.92,3.33251286]
[1763245700045,3.26,139.97,139.93,5.12064355]
[1763245705055,5.10064355,139.97,139.92,0.05251286]
[1763245705253,8.79695528,139.96,139.92,0.05251286]
[1763245705454,3.26,139.96,139.92,0.05251286]
[1763245705855,3.26,139.94,139.92,0.05251286]
[1763245708651,4.68,139.94,139.92,0.05251286]
[1763245708858,3.26,139.92,139.88,1.84064355]
[1763245709748,3.26,139.9,139.89,0.04560659]
[1763245710355,0.04946113,139.91,139.89,3.32560659]
[1763245710556,0.04946113,139.91,139.9,1.84064355]
[1763245710753,3.30946113,139.91,139.9,1.84064355]
[1763245713856,0.04946113,139.91,139.9,1.84064355]
[1763245714265,0.04946113,139.91,139.9,5.01064355]
[1763245715066,3.29,139.95,139.93,3.17]
[1763245715858,3.29,139.95,139.93,3.22275856]
[1763245719267,3.29,139.95,139.93,0.05275856]
[1763245720253,3.29,139.95,139.93,3.22275856]
[1763245724472,3.29,139.95,139.93,0.05275856]
[1763245729763,3.29,139.95,139.94,1.84064355]
[1763245729963,8.84141667,139.95,139.94,1.84064355]
[1763245731276,8.84262163,139.95,139.94,1.84064355]
[1763245732070,5.55262163,139.95,139.94,1.84064355]
[1763245732268,3.29,139.99,139.95,3.17]
[1763245732474,5.55208485,139.98,139.97,1.84064355]
[1763245732670,8.84208485,139.98,139.97,1.84064355]
[1763245733375,3.29,139.97,139.96,0.05368255]
[1763245733668,8.84208485,139.97,139.96,0.05368255]
[1763245734470,3.29,139.97,139.96,0.05368255]
[1763245743069,3.29,139.96,139.92,2.87260219]
[1763245743878,3.29,139.96,139.92,6.04260219]
[1763245744175,3.21,139.94,139.93,0.05410868]
[1763245756180,3.21,139.94,139.89,3.14]
[1763245756378,3.33,139.93,139.89,3.14]
[1763245757290,3.33,139.93,139.9,0.05207629]
[1763245758092,3.33,139.91,139.9,0.05207629]
[1763245764593,3.33,139.91,139.85,3.42]
[1763245764892,3.33,139.91,139.87,3.42]
[1763245765794,3.3841503,139.9,139.88,0.04741241]
[1763245775694,3.21,139.89,139.83,3.42]
[1763245776705,3.21,139.87,139.85,0.05205344]
[1763245776906,3.25696368,139.87,139.85,0.05205344]
[1763245786907,3.25696368,139.87,139.8,47.91]
[1763245787106,3.25696368,139.87,139.8,3.17]
[1763245787807,3.25696368,139.87,139.82,0.04858288]
[1763245789011,8.78843115,139.87,139.82,0.04858288]
[1763245789198,3.21,139.86,139.82,0.04858288]
[1763245791816,3.21,139.84,139.77,3.17]
[1763245793012,3.21,139.81,139.79,0.04793199]
[1763245803124,0.05294621,139.82,139.8,3.17]
[1763245803321,3.21,139.84,139.83,1.84272005]
[1763245803521,3.21,139.88,139.83,5.01272005]
[1763245803724,3.21,139.92,139.87,1.84272005]
[1763245804022,3.21,139.9,139.87,1.84272005]
[1763245804227,3.25961856,139.9,139.87,1.89136286]
[1763245804429,3.25961856,139.9,139.88,3.31]
[1763245805332,3.25961856,139.9,139.87,0.04864281]
[1763245806725,3.25961856,139.9,139.87,1.89136286]
[1763245809032,3.17,139.88,139.82,1.84272005]
[1763245810023,3.17,139.85,139.84,0.05348288]
[1763245815725,3.15866992,139.86,139.84,0.05348288]
[1763245817037,0.04866992,139.86,139.85,3.08]
[1763245820831,3.11,139.9,139.85,3.08]
[1763245821033,3.11,139.9,139.87,1.84272005]
[1763245821237,3.11,139.9,139.87,4.92272005]
[1763245821828,3.16082197,139.9,139.87,4.97287479]
[1763245822137,0.05082197,139.9,139.89,4.92272005]
[1763245824740,3.11,139.94,139.9,3.08]
[1763245825440,3.11,139.96,139.91,1.84272005]
[1763245825634,3.11,139.96,139.92,3.08]
[1763245825940,0.04548995,139.95,139.93,3.13268695]
[1763245826141,3.15548995,139.95,139.93,3.13268695]
[1763245826640,3.15548995,139.95,139.93,0.05268695]
[1763245829743,3.15548995,139.95,139.93,3.13268695]
[1763245831941,4.99821,139.95,139.9,3.08]
[1763245832244,3.11,139.93,139.9,3.08]
[1763245833037,3.11,139.93,139.9,3.13143661]
[1763245845054,3.11,139.93,139.9,0.05143661]
[1763245845254,3.29,139.91,139.9,0.05143661]
[1763245845454,3.29,139.91,139.87,3.39]
[1763245846356,3.29,139.91,139.88,0.05078598]
[1763245846555,3.29,139.89,139.88,0.05078598]
[1763245848258,3.29,139.89,139.84,3.39]
[1763245848851,1.84272005,139.88,139.82,1.84272005]
[1763245849152,3.29,139.87,139.82,5.23272005]
[1763245849353,3.29,139.85,139.83,0.05108589]
[1763245849551,3.34013792,139.85,139.83,0.05052498]
[1763245859559,0.05013792,139.85,139.83,3.44052498]
[1763245864765,3.44013792,139.85,139.83,3.44052498]
[1763245864969,3.44013792,139.85,139.83,0.05052498]
[1763245871166,0.05013792,139.85,139.84,3.12]
[1763245871377,3.39,139.88,139.84,5.99795719]
[1763245872474,3.18,139.86,139.83,0.05052498]
[1763245872669,3.18,139.86,139.83,3.42756877]
[1763245872873,3.22719518,139.87,139.85,3.38]
[1763245873669,3.22719518,139.87,139.84,6.25795719]
[1763245883375,0.04719518,139.87,139.85,3.38]
[1763245883684,0.04719518,139.87,139.86,6.25795719]
[1763245888192,3.18,139.91,139.87,3.38]
[1763245888395,3.18,139.89,139.87,3.38]
[1763245889184,3.22594206,139.89,139.87,3.42884416]
[1763245892497,0.04594206,139.89,139.87,3.42884416]
[1763245895191,0.04594206,139.89,139.88,6.03795719]
[1763245895395,5.50834273,139.92,139.89,3.16]
[1763245895593,3.12,139.95,139.92,3.16]
[1763245896491,3.17145788,139.95,139.92,3.20807535]
[1763245899098,0.05145788,139.95,139.92,3.20807535]
[1763245903298,0.05145788,139.95,139.93,6.03795719]
[1763245903899,0.05145788,139.95,139.94,3.16]
[1763245913304,3.17145788,139.95,139.92,3.20807535]
[1763245913901,3.17145788,139.95,139.92,0.04807535]
[1763245914407,8.65640855,139.95,139.92,0.04807535]
[1763245914606,3.17145788,139.95,139.92,0.04807535]
[1763245914807,3.12,139.94,139.92,0.04807535]
[1763245915409,3.12,139.94,139.92,3.20807535]
[1763245915810,3.12,139.94,139.92,0.04807535]
[1763245916108,3.12,139.94,139.92,3.20807535]
[1763245918511,3.12,139.94,139.92,0.04807535]
[1763245922204,4.95923389,139.93,139.87,4.99923389]
[1763245922408,3.12,139.92,139.88,3.16]
[1763245922607,1.83923389,139.93,139.88,3.16]
[1763245922608,3.12,139.91,139.88,3.16]
[1763245923217,3.1728917,139.91,139.88,3.2123829]
[1763245923414,3.12,139.9,139.88,0.0523829]
[1763245923615,3.12,139.89,139.88,0.0523829]
[1763245923816,3.12,139.89,139.84,3.16]
[1763245924012,3.12,139.89,139.83,1.83923389]
[1763245924517,3.12,139.89,139.83,4.95923389]
[1763245924814,3.17,139.86,139.85,0.05371178]
[1763245931322,3.22005032,139.87,139.85,3.17371178]
[1763245931730,3.22005032,139.87,139.85,0.05371178]
[1763245933626,0.05005032,139.87,139.86,3.27]
[1763245934528,3.45005032,139.87,139.85,0.05371178]
[1763245934728,3.45005032,139.87,139.85,3.32371178]
[1763245936031,3.45005032,139.87,139.85,0.05371178]
[1763245942230,3.45005032,139.87,139.79,49.97]
[1763245942426,3.45005032,139.87,139.82,1.83923389]
[1763245943340,3.45005032,139.87,139.83,0.05476154]
[1763245950842,3.45005032,139.87,139.84,3.27]
[1763245951351,3.45005032,139.87,139.83,3.32476154]
[1763245952544,3.45005032,139.87,139.83,0.05476154]
[1763245952745,3.4,139.86,139.83,0.05476154]
[1763245953351,3.4,139.85,139.83,0.05476154]
[1763245954850,8.86268443,139.84,139.8,1.83923389]
[1763245955040,3.38,139.83,139.8,1.83923389]
[1763245955244,3.38,139.83,139.78,1.83923389]
[1763245955446,3.38,139.81,139.76,5.11923389]
[1763245955845,0.04903633,139.8,139.77,0.04788315]
[1763245956152,3.38,139.79,139.77,0.04788315]
[1763245958253,3.38,139.79,139.73,5.11923389]
[1763245959253,3.38,139.79,139.75,0.05501662]
[1763245959452,8.86207514,139.78,139.75,0.05501662]
[1763245959654,3.38,139.77,139.75,0.05501662]
[1763245966953,3.38,139.76,139.75,0.05501662]
[1763245967157,3.38,139.75,139.7,1.83923389]
[1763245967360,3.38,139.74,139.7,1.83923389]
[1763245967550,3.38,139.74,139.69,1.83923389]
[1763245967955,3.38,139.73,139.69,1.83923389]
[1763245969248,3.38,139.73,139.68,3.28]
[1763245969453,3.38,139.73,139.68,5.11923389]
[1763245970658,3.38,139.73,139.67,1.83923389]
[1763245970863,3.38,139.73,139.7,3.28]
[1763245971063,3.38,139.73,139.71,1.83923389]
[1763245971361,3.43113494,139.73,139.71,1.83923389]
[1763245973157,3.43113494,139.73,139.7,0.04517303]
[1763245975866,3.43113494,139.73,139.72,1.83923389]
[1763245976766,3.43113494,139.73,139.7,1.88440692]
[1763245977065,3.43113494,139.73,139.7,0.04517303]
[1763245982055,3.43113494,139.73,139.7,3.32517303]
[1763245982365,0.05113494,139.73,139.72,6.162918]
[1763245982565,3.43113494,139.73,139.7,6.20809103]
[1763245983766,3.43113494,139.73,139.71,3.28]
[1763245984368,3.43113494,139.73,139.7,0.04517303]
[1763245986370,8.88636554,139.73,139.7,0.04517303]
[1763245986570,3.39,139.72,139.7,0.04517303]
[1763245987364,8.8452306,139.72,139.7,0.04517303]
[1763245987973,3.39,139.71,139.7,0.04517303]
[1763245989773,3.39,139.71,139.65,3.32]
[1763245989976,3.39,139.69,139.61,3.32]
[1763245990269,3.39,139.68,139.61,6.202918]
[1763245990669,3.43639879,139.66,139.63,3.36561926]
[1763245990876,3.4411145,139.66,139.63,3.36872036]
[1763245992674,3.32,139.64,139.56,3.2]
[1763245992881,3.32,139.62,139.56,3.2]
[1763245993181,3.32,139.61,139.56,3.2]
[1763245993773,3.37131707,139.6,139.57,0.04867864]
[1763245994478,3.32,139.59,139.53,3.2]
[1763245994674,3.32,139.59,139.49,3.2]
[1763245994675,3.32,139.57,139.49,3.2]
[1763245994871,3.32,139.56,139.49,6.082918]
[1763245995076,3.32,139.56,139.5,3.2]
[1763245995375,3.32,139.56,139.46,1.24728948]
[1763245995376,0.04787156,139.54,139.52,3.2360553]
[1763245997972,0.04787156,139.54,139.53,6.082918]
[1763245999985,3.32,139.59,139.54,3.2]
[1763246000185,3.32,139.59,139.56,3.2]
[1763246000877,3.32,139.59,139.56,3.24662116]
[1763246001083,3.36610929,139.59,139.56,3.24662116]
[1763246004683,3.32,139.57,139.56,0.04662116]
[1763246005790,3.32,139.57,139.51,3.2]
[1763246006587,3.32,139.57,139.53,0.03730569]
[1763246006794,3.37393583,139.55,139.53,0.03730569]
[1763246007090,3.37354735,139.55,139.53,0.03730569]
[1763246009490,3.37354735,139.55,139.48,3.2]
[1763246009992,3.32,139.54,139.48,3.2]
[1763246010190,3.32,139.54,139.49,3.2]
[1763246013190,3.32,139.54,139.47,3.2]
[1763246013397,3.36669053,139.52,139.48,3.2]
[1763246013597,0.04869412,139.51,139.48,3.2]
[1763246014696,0.04869412,139.51,139.49,2.882918]
[1763246014892,3.2,139.57,139.5,3.32]
[1763246015798,3.2,139.57,139.51,6.202918]
[1763246016002,0.05444508,139.55,139.53,3.36869413]
[1763246021310,3.2,139.54,139.53,0.04869413]
[1763246025502,3.2,139.54,139.47,6.202918]
[1763246026712,2.882918,139.57,139.48,3.32]
[1763246026713,3.2,139.51,139.48,3.32]
[1763246029805,3.2,139.51,139.47,3.32]
[1763246030505,3.2,139.51,139.43,6.202918]
[1763246030710,3.25083758,139.48,139.44,3.32]
[1763246033807,0.05083758,139.48,139.46,3.32]
[1763246035314,0.05083758,139.48,139.47,6.202918]
[1763246035516,0.05083758,139.48,139.46,3.32]
[1763246038911,0.05083758,139.48,139.47,5.17089382]
[1763246043019,0.05083758,139.48,139.47,3.32]
[1763246043221,5.56847251,139.48,139.47,3.32]
[1763246043419,8.76801062,139.48,139.45,3.32]
[1763246043720,5.51717304,139.47,139.45,3.32]
[1763246043924,3.2,139.46,139.44,1.85089382]
[1763246044619,3.2,139.46,139.44,4.96089382]
[1763246045824,3.2,139.46,139.44,3.11]
[1763246046429,3.2,139.46,139.4,4.96089382]
[1763246046726,3.42312541,139.44,139.4,3.11]
[1763246049017,3.42312541,139.44,139.38,3.09903327]
[1763246049621,3.37,139.43,139.38,4.35813945]
[1763246050425,3.37,139.43,139.38,3.11]
[1763246051430,3.37,139.42,139.38,3.11]
[1763246053030,0.05312541,139.44,139.4,3.18]
[1763246053230,0.05122787,139.43,139.4,3.18]
[1763246055327,3.38,139.42,139.39,3.18]
[1763246055529,3.38,139.42,139.36,5.03089382]
[1763246055734,0.0516339,139.4,139.37,3.18]
[1763246056433,3.4316339,139.4,139.37,3.18]
[1763246056623,0.0516339,139.4,139.37,3.18]
[1763246060032,0.0516339,139.4,139.26,42.54]
[1763246060033,3.38,139.38,139.33,3.18]
[1763246060232,0.04961569,139.37,139.33,3.18]
[1763246064142,3.42961569,139.37,139.3,3.18]
[1763246064342,1.85089382,139.38,139.3,3.18]
[1763246064343,3.43316401,139.35,139.3,3.18]
[1763246065941,0.05316401,139.35,139.34,3.18]
[1763246066643,0.05316401,139.35,139.33,3.18]
[1763246071956,3.43316401,139.35,139.31,3.18]
[1763246072153,3.43316401,139.35,139.29,1.24896817]
[1763246072346,3.43316401,139.35,139.3,5.03089382]
[1763246074061,3.43316401,139.35,139.31,3.16]
[1763246076751,3.43316401,139.35,139.3,1.85089382]
[1763246076752,0.05316401,139.35,139.33,3.16]
[1763246077359,0.05316401,139.35,139.3,3.16]
[1763246077360,3.25316401,139.35,139.3,3.16]
[1763246077963,3.25316401,139.35,139.28,5.01089382]
[1763246078762,3.25316401,139.35,139.27,3.09995164]
[1763246079067,3.2,139.33,139.27,3.09995164]
[1763246079256,0.05215453,139.31,139.28,3.16]
[1763246080361,3.2,139.3,139.25,5.01089382]
[1763246080662,3.24782615,139.29,139.26,3.16]
[1763246081070,3.24782615,139.29,139.23,3.16]
[1763246081257,0.05322209,139.27,139.23,3.16]
[1763246081564,0.05322209,139.27,139.11,21.54]
[1763246081565,1.85089382,139.26,139.2,3.16]
[1763246081765,3.2,139.23,139.16,3.16]
[1763246081976,3.2,139.2,139.16,3.16]
[1763246082771,0.05500397,139.21,139.16,3.16]
[1763246083068,3.25500397,139.21,139.16,3.16]
[1763246085370,3.25500397,139.21,139.14,4.4103593]
[1763246085973,3.25500397,139.21,139.14,3.16]
[1763246088371,3.2,139.2,139.14,3.16]
[1763246090568,3.2,139.2,139.12,3.16]
[1763246090769,3.24650179,139.17,139.12,3.16]
[1763246091374,0.04650179,139.17,139.12,3.16]
[1763246093970,3.24650179,139.17,139.12,3.16]
[1763246095482,0.04650179,139.17,139.12,3.16]
[1763246095976,3.24650179,139.17,139.12,3.16]
[1763246098077,3.2,139.16,139.09,3.16]
[1763246098275,3.2,139.13,139.09,3.16]
[1763246098578,3.2,139.13,139.08,1.25080871]
[1763246098776,3.2,139.13,139.05,3.16]
[1763246098971,0.04692594,139.1,139.05,3.16]
[1763246100481,3.24692594,139.1,139.05,3.16]
[1763246104277,3.33,139.09,139.02,3.17]
[1763246104469,0.05075668,139.07,139.02,3.17]
[1763246104669,0.05075668,139.07,139.06,2.91019407]
[1763246104876,3.33,139.12,139.07,3.17]
[1763246105069,3.33,139.15,139.07,3.17]
[1763246105367,3.33,139.15,139.06,2.91019407]
[1763246105368,3.33,139.15,139.06,3.17]
[1763246105772,0.04868538,139.12,139.09,0.05075668]
[1763246105973,0.04868538,139.12,139.09,3.22075668]
[1763246106174,3.33,139.11,139.09,0.05075668]
[1763246106584,3.37868538,139.12,139.09,0.05075668]
[1763246108283,3.37868538,139.12,139.09,3.22075668]
[1763246108879,0.04868538,139.12,139.09,3.22075668]
[1763246109383,3.37868538,139.12,139.09,0.05075668]
[1763246118286,8.86389789,139.12,139.09,0.05075668]
[1763246118478,3.37868538,139.12,139.09,0.05075668]
[1763246118679,3.23,139.11,139.09,0.05075668]
[1763246121890,3.27868538,139.12,139.09,3.29075668]
[1763246122091,0.04868538,139.12,139.09,3.29075668]
[1763246122294,5.51456943,139.11,139.09,3.29075668]
[1763246122485,3.23,139.11,139.09,0.05075668]
[1763246123094,0.04868538,139.12,139.1,3.24]
[1763246123292,5.51452515,139.11,139.1,3.24]
[1763246125188,5.51452515,139.11,139.09,3.29075668]
[1763246125383,5.51452515,139.1,139.09,3.29075668]
[1763246126193,8.74452515,139.1,139.09,0.05075668]
[1763246126394,15.36269711,139.1,139.06,3.24]
[1763246126593,8.92139978,139.12,139.0,1.25148344]
[1763246126594,3.23,139.08,139.04,3.24]
[1763246126796,5.51452515,139.07,139.04,3.24]
[1763246126993,5.51452515,139.06,139.04,3.24]
[1763246127193,3.23,139.08,139.04,3.24]
[1763246127394,5.5989026,139.07,139.04,3.24]
[1763246127589,5.54957061,139.06,139.04,3.24]
[1763246127792,0.04933199,139.07,139.04,3.24]
[1763246128093,5.54923889,139.06,139.04,3.24]
[1763246128396,0.04933199,139.07,139.04,3.24]
[1763246128697,5.55033106,139.06,139.04,3.24]
[1763246128893,0.04933199,139.07,139.04,3.24]
[1763246129094,5.55033423,139.06,139.04,3.24]
[1763246129284,0.04933199,139.07,139.04,3.24]
[1763246129490,5.5515851,139.06,139.04,3.24]
[1763246129789,0.04933199,139.07,139.04,3.24]
[1763246129989,5.5515851,139.06,139.04,3.24]
[1763246130197,0.04933199,139.07,139.04,3.24]
[1763246130395,5.55278645,139.06,139.04,3.24]
[1763246130593,0.04933199,139.07,139.04,3.24]
[1763246131796,8.70568029,139.06,139.02,3.24]
[1763246131996,3.23,139.06,139.02,3.24]
[1763246134095,5.47757438,139.05,139.02,3.24]
[1763246134295,8.59223535,139.04,139.0,3.29]
[1763246134495,5.53340973,139.03,139.0,3.29]
[1763246134692,0.04982232,139.03,139.0,3.29]
[1763246135290,3.15982232,139.03,139.0,3.29]
[1763246135711,3.15982232,139.03,138.98,3.29]
[1763246136608,3.11,139.02,138.97,4.54179856]
[1763246136799,3.11,139.02,138.98,3.29]
[1763246137004,3.15595638,139.01,138.98,3.29]
[1763246137720,0.04595638,139.01,138.98,3.29]
[1763246138312,3.15595638,139.01,138.98,3.29]
[1763246139810,0.04595638,139.01,138.98,3.29]
[1763246143615,3.11,139.06,139.0,3.29]
[1763246144417,8.58738216,139.08,139.0,3.29]
[1763246144721,0.04933199,139.05,139.03,3.33725814]
[1763246144922,0.04756583,139.05,139.03,3.33725814]
[1763246148029,3.11,139.04,139.03,0.04725814]
[1763246148623,3.11,139.04,138.95,11.22]
[1763246148624,3.11,139.03,138.96,3.29]
[1763246149627,2.91019407,139.04,138.96,3.29]
[1763246149628,3.1613909,139.01,138.96,3.29]
[1763246152525,3.1613909,139.01,138.94,1.25211384]
[1763246153323,3.1613909,139.01,138.93,3.29]
[1763246154325,3.1613909,139.01,138.91,4.16255574]
[1763246154326,3.1613909,139.01,138.91,1.25236167]
[1763246154531,3.11,138.95,138.89,3.29]
[1763246154728,3.11,138.92,138.89,3.29]
[1763246154927,3.11,138.91,138.87,1.25263215]
[1763246155231,3.11,138.91,138.8,3.29]
[1763246155232,3.11,138.87,138.8,3.29]
[1763246155433,0.0548241,138.85,138.8,6.20019407]
[1763246155729,0.0548241,138.85,138.81,3.29]
[1763246156328,0.0548241,138.85,138.83,3.29]
[1763246156535,3.11,138.9,138.84,3.29]
[1763246156742,3.11,138.9,138.85,3.29]
[1763246157230,3.11,138.93,138.85,3.29]
[1763246157631,0.05259984,138.9,138.88,3.3448241]
[1763246160928,3.11,138.98,138.9,3.29]
[1763246161136,3.11,138.98,138.92,3.29]
[1763246161927,0.05378137,138.96,138.94,3.34511584]
[1763246168733,0.05378137,138.96,138.94,3.29511584]
[1763246169631,3.22378137,138.96,138.91,3.24]
[1763246169950,3.17,138.96,138.91,3.24]
[1763246170834,3.17,138.94,138.92,0.0523081]
[1763246172236,3.17,138.94,138.85,3.24]
[1763246172839,3.12,138.92,138.85,3.24]
[1763246173042,5.43066384,138.91,138.81,3.38]
[1763246173244,0.05361566,138.87,138.81,3.38]
[1763246174748,3.17361566,138.87,138.81,3.38]
[1763246180544,3.17361566,138.87,138.79,3.38]
[1763246182438,3.17361566,138.87,138.77,87.61357973]
[1763246182439,3.17361566,138.87,138.77,1.25357973]
[1763246182645,3.16920093,138.83,138.77,3.38]
[1763246186248,3.16920093,138.83,138.73,3.38]
[1763246186449,0.04989775,138.79,138.73,3.38]
[1763246186958,0.04989775,138.79,138.73,5.2503452]
[1763246187155,3.16989775,138.79,138.75,5.2503452]
[1763246187656,3.16989775,138.79,138.75,3.38]
[1763246190755,3.16989775,138.79,138.75,5.2503452]
[1763246191559,3.16989775,138.79,138.72,1.25407665]
[1763246191767,3.16989775,138.79,138.7,3.38]
[1763246191950,3.16766598,138.76,138.72,3.38]
[1763246192263,3.16766598,138.76,138.71,5.2503452]
[1763246192563,3.16766598,138.76,138.71,1.8703452]
[1763246192861,3.16766598,138.76,138.71,5.2503452]
[1763246193047,3.16766598,138.76,138.71,1.8703452]
[1763246193249,3.12,138.75,138.63,3.38]
[1763246193449,0.04673663,138.7,138.66,5.2503452]
[1763246193652,0.04564232,138.69,138.68,1.8703452]
[1763246193848,0.04660211,138.7,138.68,1.8703452]
[1763246194263,0.04660211,138.7,138.69,5.1003452]
[1763246194961,0.04660211,138.7,138.66,7.77949723]
[1763246195161,0.04660211,138.7,138.67,3.23]
[1763246196465,3.23,138.77,138.7,3.23]
[1763246197159,5.43066384,138.79,138.7,3.23]
[1763246197360,8.66066384,138.79,138.7,3.23]
[1763246197660,0.05486775,138.76,138.73,3.27660211]
[1763246199664,5.43066384,138.82,138.76,3.23]
[1763246199865,5.43743482,138.84,138.76,3.23]
[1763246200172,8.66743482,138.86,138.79,3.23]
[1763246200363,3.23,138.86,138.79,3.23]
[1763246200763,0.05279353,138.84,138.82,3.23]
[1763246202359,3.28279353,138.84,138.81,0.04933745]
[1763246202563,3.23,138.82,138.74,3.23]
[1763246202763,8.66743482,138.81,138.74,3.23]
[1763246202964,3.23,138.79,138.69,3.23]
[1763246203266,3.23,138.78,138.69,3.23]
[1763246203465,0.05452068,138.75,138.72,0.05213241]
[1763246203661,5.43743482,138.74,138.65,3.23]
[1763246203870,3.23,138.72,138.65,3.23]
[1763246204563,0.05304515,138.7,138.65,3.23]
[1763246204769,3.28304515,138.7,138.65,3.23]
[1763246205567,3.28304515,138.7,138.62,1.25473229]
[1763246205768,3.28304515,138.7,138.62,4.48473229]
[1763246206868,3.28304515,138.7,138.63,3.23]
[1763246208971,3.28304515,138.7,138.65,3.23]
[1763246208972,0.05304515,138.7,138.65,3.23]
[1763246212268,0.05304515,138.7,138.62,1.25473229]
[1763246212269,3.23,138.69,138.63,3.23]
[1763246212468,0.05304515,138.7,138.63,3.23]
[1763246212668,3.28304515,138.7,138.63,3.23]
[1763246215470,8.72047997,138.7,138.63,3.23]
[1763246215668,3.28304515,138.7,138.63,3.23]
[1763246218182,5.46398259,138.69,138.63,3.23]
[1763246218379,3.28304515,138.7,138.63,3.23]
[1763246218579,5.46398375,138.69,138.63,3.23]
[1763246218783,3.28304515,138.7,138.63,3.23]
[1763246218982,5.46398375,138.69,138.63,3.23]
[1763246219182,3.28304515,138.7,138.63,3.23]
[1763246219777,5.46428034,138.69,138.63,3.23]
[1763246219982,3.28304515,138.7,138.63,3.23]
[1763246220580,0.05304515,138.7,138.63,7.77949723]
[1763246220782,0.05304515,138.7,138.64,3.23]
[1763246221282,3.23,138.69,138.64,3.23]
[1763246222291,0.05304515,138.7,138.64,3.23]
[1763246223199,0.05304515,138.7,138.67,3.23]
[1763246223401,0.05334046,138.7,138.67,3.23]
[1763246223901,0.05334046,138.7,138.67,4.67]
[1763246224097,0.05334046,138.7,138.68,3.26]
[1763246226994,6.61817196,138.78,138.68,3.26]
[1763246226995,3.28,138.78,138.69,3.26]
[1763246227201,5.46113896,138.77,138.69,3.26]
[1763246227400,3.28,138.78,138.69,3.26]
[1763246227803,9.89817196,138.81,138.71,3.26]
[1763246227993,9.89817196,138.81,138.76,3.26]
[1763246227994,0.05050522,138.77,138.76,3.26]
[1763246228194,0.05244976,138.78,138.76,3.26]
[1763246230996,3.33244976,138.78,138.75,0.05307499]
[1763246231797,3.35,138.76,138.67,3.12]
[1763246231997,5.46446857,138.75,138.67,3.12]
[1763246232398,3.35,138.76,138.68,3.12]
[1763246232805,0.05382347,138.73,138.68,3.12]
[1763246233597,3.40382347,138.73,138.68,3.12]
[1763246233802,0.05382347,138.73,138.68,3.12]
[1763246234392,8.81446857,138.8,138.69,3.17403786]
[1763246234592,8.81446857,138.8,138.68,7.24237022]
[1763246234593,3.35,138.8,138.7,3.12]
[1763246234802,8.81446857,138.83,138.72,3.12]
[1763246235103,3.35,138.83,138.72,3.12]
[1763246235301,8.81446857,138.83,138.72,3.12]
[1763246235492,0.04831641,138.79,138.76,0.04868681]
[1763246235697,0.04831641,138.79,138.77,3.12]
[1763246236308,8.81446857,138.87,138.78,3.12]
[1763246236603,8.81446857,138.86,138.78,3.12]
[1763246236905,3.35,138.86,138.78,3.12]
[1763246237402,0.05338042,138.83,138.81,3.16695794]
[1763246237608,0.05338042,138.83,138.81,3.17369375]
[1763246237609,0.05288182,138.83,138.81,3.17369375]
[1763246237801,3.35,138.89,138.81,3.17369375]
[1763246237997,8.81446857,138.93,138.83,7.24237022]
[1763246238306,3.35,138.92,138.84,3.12]
[1763246238708,0.04838585,138.89,138.87,3.16773596]
[1763246238896,3.39838585,138.89,138.87,0.04773596]
[1763246239100,3.39838585,138.89,138.8,10.36237022]
[1763246239412,3.35,138.89,138.81,3.12]
[1763246239913,6.61817196,138.98,138.89,3.12]
[1763246240208,0.0544315,138.95,138.92,3.1710834]
[1763246240414,3.35,139.03,138.92,3.1710834]